bitfinex-derivatives/quotes_ETHF0:USTF0_20240826
["timestamp","ask_amount","ask_price","bid_price","bid_amount"]
[1724695545914,0.7613,2694.9,2694.8,3.57875]
[1724695546215,9.87730758,2694.9,2694.8,3.57875]
[1724695548317,9.11600758,2694.9,2694.8,3.57875]
[1724695548514,0.00962511,2695.0,2694.9,0.37094]
[1724695548812,0.00962511,2695.0,2694.9,4.08134]
[1724695549817,0.00962511,2695.0,2694.9,5.00869]
[1724695550122,0.00962511,2695.0,2694.9,4.08134]
[1724695551204,0.00962511,2695.0,2694.9,0.37094]
[1724695551922,9.45647547,2695.0,2694.9,0.37094]
[1724695553707,13.53780547,2695.0,2694.8,3.2078]
[1724695553910,5.1786,2694.9,2694.8,3.2078]
[1724695554312,14.45059351,2694.9,2694.8,3.2078]
[1724695554518,14.45059351,2694.9,2694.5,1.40743651]
[1724695554711,11.11114351,2694.9,2694.5,1.40743651]
[1724695554922,0.37095,2694.8,2694.5,1.40743651]
[1724695555118,0.7485,2694.7,2694.5,1.77842651]
[1724695555325,10.02406203,2694.7,2694.5,1.77842651]
[1724695556122,10.02406203,2694.7,2694.6,0.37098]
[1724695556821,10.02406203,2694.7,2694.5,1.77842651]
[1724695557133,10.02406203,2694.7,2694.6,0.37098]
[1724695560627,9.27556203,2694.7,2694.6,5.00964]
[1724695560919,0.00962511,2695.0,2694.9,0.37094]
[1724695561322,0.00962511,2695.0,2694.9,3.7104]
[1724695561519,0.00962511,2695.0,2694.5,1.40743651]
[1724695561520,0.37094,2694.9,2694.5,1.40743651]
[1724695561825,0.7484,2694.8,2694.5,1.40743651]
[1724695562019,10.04894911,2694.8,2694.5,1.40743651]
[1724695562216,0.37098,2694.6,2694.5,1.40743651]
[1724695562412,0.37101,2694.5,2693.7,0.92774]
[1724695562614,0.37101,2694.4,2693.5,4.13561]
[1724695562820,9.30054911,2694.4,2694.3,0.37102]
[1724695563118,3.7112,2694.4,2694.3,0.37102]
[1724695563417,12.78411776,2694.4,2694.3,0.37466329]
[1724695563619,9.07291776,2694.4,2694.3,1.30222329]
[1724695563821,9.07291776,2694.4,2694.3,2.22978329]
[1724695564120,0.7484,2694.8,2694.7,0.37097]
[1724695564527,13.7405734,2694.8,2694.7,0.37097]
[1724695564724,0.00962511,2695.0,2694.7,4.08217]
[1724695565029,0.00962511,2695.0,2694.9,0.37094]
[1724695565323,0.00962511,2695.0,2694.9,2.22564]
[1724695565528,0.00962511,2695.0,2694.9,5.93604]
[1724695566221,0.00962511,2695.0,2694.9,4.08134]
[1724695566423,0.00962511,2695.0,2694.9,0.37094]
[1724695566618,0.00962511,2695.0,2694.9,4.08134]
[1724695567928,0.00962511,2695.0,2694.9,0.37094]
[1724695569625,0.00405511,2695.0,2694.9,5.00869]
[1724695570223,0.00405511,2695.0,2694.9,4.08134]
[1724695570424,0.00405511,2695.0,2694.9,0.37094]
[1724695570623,3.71445511,2695.0,2694.9,0.37094]
[1724695571131,13.12007307,2695.0,2694.9,0.37094]
[1724695572022,18.12007307,2695.0,2694.7,0.37096]
[1724695572222,9.40967307,2695.0,2694.7,0.37096]
[1724695572425,13.12007307,2695.0,2694.7,0.37096]
[1724695572731,9.40967307,2695.0,2694.6,0.37097]
[1724695572922,9.78059307,2695.0,2694.4,3.2078]
[1724695573126,9.78059307,2695.0,2694.6,0.37097]
[1724695573431,9.40967307,2695.0,2694.9,0.37094]
[1724695575623,0.00405511,2695.0,2694.9,0.37094]
[1724695576234,0.00405511,2695.0,2694.9,10.21604]
[1724695576429,0.00405511,2695.0,2694.9,15.21604]
[1724695576633,0.00405511,2695.0,2694.9,10.21604]
[1724695576834,0.00405511,2695.0,2694.9,15.21604]
[1724695577734,0.00405511,2695.0,2694.9,9.28869]
[1724695578135,0.00405511,2695.0,2694.9,0.37094]
[1724695578438,9.38199884,2695.0,2694.9,0.37094]
[1724695579140,9.38199884,2695.0,2694.8,0.37094]
[1724695579331,9.38199884,2695.0,2694.5,3.21]
[1724695579530,9.38199884,2695.0,2694.9,0.37094]
[1724695580037,13.09239884,2695.0,2694.4,1.4393]
[1724695580238,0.7415,2694.9,2694.7,0.37096]
[1724695580443,0.7415,2694.9,2694.6,0.37097]
[1724695580643,0.7415,2694.9,2694.7,0.37097]
[1724695580644,9.08413488,2694.8,2694.7,0.37097]
[1724695581141,12.79533488,2694.8,2694.7,0.37097]
[1724695583438,9.08413488,2694.8,2694.7,0.37097]
[1724695583839,0.00405511,2695.0,2694.9,0.37094]
[1724695584135,0.00405511,2695.0,2694.9,1.29829]
[1724695584339,0.00405511,2695.0,2694.9,5.93604]
[1724695585448,0.00405511,2695.0,2694.9,15.21604]
[1724695585632,0.00405511,2695.0,2694.9,16.18181453]
[1724695586733,0.00405511,2695.0,2694.9,10.25446453]
[1724695586941,0.00405511,2695.0,2694.9,5.00869]
[1724695587138,0.00405511,2695.0,2694.9,10.00869]
[1724695587938,0.00405511,2695.0,2694.9,5.00869]
[1724695588336,0.00405511,2695.0,2694.9,10.93604]
[1724695588843,0.00557,2695.2,2695.1,2.22547]
[1724695589327,0.00557,2695.2,2695.1,5.93587]
[1724695589735,0.0086076,2695.2,2695.1,5.93587]
[1724695589934,0.0086076,2695.2,2695.1,5.00859]
[1724695591133,0.0086076,2695.2,2695.1,5.93587]
[1724695591342,1.4746,2696.1,2695.8,0.3708]
[1724695591541,1.4746,2696.1,2695.5,0.92712]
[1724695591734,9.13766176,2696.0,2695.9,0.37079]
[1724695592040,5.0242,2696.5,2695.6,1.4572]
[1724695592041,0.7442,2696.5,2695.6,1.4572]
[1724695592243,0.7442,2696.5,2695.7,0.37081]
[1724695592244,9.48825654,2696.0,2695.7,0.37081]
[1724695592441,9.48825654,2696.0,2695.8,0.37081]
[1724695592442,9.49236211,2696.0,2695.8,0.37081]
[1724695592644,9.49236211,2696.0,2695.6,1.4572]
[1724695592645,3.71370557,2696.0,2695.6,1.46277]
[1724695592943,9.48825654,2695.9,2695.6,0.00557]
[1724695593138,21.05646654,2695.9,2695.6,0.00557]
[1724695593344,3.7096,2695.8,2695.6,0.00557]
[1724695593642,0.00410557,2696.0,2695.6,0.00557]
[1724695593833,0.00410557,2696.0,2695.9,0.3708]
[1724695594234,9.4898955,2696.0,2695.9,0.3708]
[1724695594441,0.00410557,2696.0,2695.9,0.3708]
[1724695597238,9.30077745,2696.0,2695.8,0.37081]
[1724695597637,9.30077745,2696.0,2695.7,0.37082]
[1724695597844,9.30077745,2696.0,2695.8,0.37081]
[1724695598346,9.30077745,2696.0,2695.6,0.00557]
[1724695598347,11.1974,2695.9,2695.6,0.00557]
[1724695598540,11.1974,2695.9,2695.0,0.37092]
[1724695598541,4.28,2695.7,2695.0,0.37092]
[1724695598738,0.6968,2695.6,2695.0,0.37092]
[1724695598942,0.6968,2695.6,2694.6,1.4318]
[1724695598943,3.2078,2695.1,2694.6,1.4318]
[1724695599141,3.2078,2695.1,2694.7,0.37096]
[1724695599142,0.6968,2695.0,2694.7,0.37096]
[1724695599345,9.75020081,2695.0,2694.7,0.37096]
[1724695599942,9.75020081,2695.0,2694.6,0.37654]
[1724695600249,3.2078,2694.8,2694.6,0.00557]
[1724695600542,4.28,2694.7,2694.6,0.00557]
[1724695600751,17.07972591,2694.7,2694.6,0.00557]
[1724695600951,17.79972591,2694.7,2694.6,0.00557]
[1724695601741,12.79972591,2694.7,2694.6,0.00557]
[1724695602350,13.49282591,2694.7,2694.6,0.00557]
[1724695602549,22.77282591,2694.7,2694.6,0.00557]
[1724695602747,0.37098,2694.6,2694.3,0.00364329]
[1724695603056,9.14611255,2694.5,2694.3,0.00364329]
[1724695603242,3.7112,2694.4,2694.3,0.00364329]
[1724695603643,12.85731255,2694.4,2694.3,0.00364329]
[1724695604353,12.85731255,2694.4,2694.3,0.37466329]
[1724695605944,12.85731255,2694.4,2694.3,0.00364329]
[1724695606152,16.06731255,2694.4,2694.3,0.00364329]
[1724695606954,12.85731255,2694.4,2694.3,0.00364329]
[1724695607854,12.85731255,2694.4,2694.3,0.37466329]
[1724695608753,12.85731255,2694.4,2694.3,0.00364329]
[1724695608950,12.85731255,2694.4,2694.3,0.37466329]
[1724695610554,0.00557,2694.6,2694.5,1.29848]
[1724695610851,0.00557,2694.6,2694.5,5.43597]
[1724695611052,0.00557,2694.6,2694.5,8.21968]
[1724695611253,0.00557,2694.6,2694.5,0.37099]
[1724695611645,0.00557,2694.6,2694.3,0.00364329]
[1724695611646,12.86723005,2694.6,2694.3,0.00364329]
[1724695611844,3.581,2694.5,2694.3,0.00364329]
[1724695612051,5.5136,2694.5,2694.3,0.00364329]
[1724695612246,12.87658085,2694.4,2694.3,0.00364329]
[1724695612452,9.16538085,2694.4,2694.3,0.00364329]
[1724695612741,12.87658085,2694.4,2694.3,0.00364329]
[1724695615353,13.24759085,2694.4,2694.3,0.00364329]
[1724695615656,0.37103,2694.2,2693.5,3.2078]
[1724695615849,0.92756,2694.3,2694.1,0.37103]
[1724695615850,0.7373,2694.3,2694.1,0.37103]
[1724695616044,9.31844869,2694.1,2693.8,0.37108]
[1724695616249,1.10833,2694.3,2694.0,0.37106]
[1724695616250,9.25290992,2694.2,2694.0,0.37106]
[1724695616549,9.25290992,2694.0,2693.8,0.37108]
[1724695616755,9.2576268,2694.0,2693.9,0.37108]
[1724695616952,0.00471688,2694.0,2693.9,0.37108]
[1724695617155,9.2230238,2694.0,2693.9,0.37108]
[1724695617861,9.2230238,2694.0,2693.8,0.37430156]
[1724695618050,9.2230238,2694.0,2693.9,0.37108]
[1724695618650,12.9350238,2694.0,2693.9,0.37108]
[1724695618948,9.2230238,2694.0,2693.9,0.37108]
[1724695619947,9.2230238,2694.0,2693.9,1.83888]
[1724695620545,9.2230238,2694.0,2693.9,0.37108]
[1724695620948,9.2230238,2694.0,2693.8,0.37430156]
[1724695621658,9.2230238,2694.0,2693.9,0.37108]
[1724695622355,9.2230238,2694.0,2693.8,0.37430156]
[1724695623754,9.2230238,2694.0,2693.9,0.37108]
[1724695626953,9.2230238,2694.0,2693.9,9.29078]
[1724695627156,0.00557,2694.6,2694.4,0.371]
[1724695627568,9.06739499,2694.4,2694.3,0.37101]
[1724695627767,9.06739499,2694.5,2694.4,0.37101]
[1724695627955,0.00557,2694.6,2694.4,0.37101]
[1724695628159,9.35261377,2694.5,2694.4,0.37101]
[1724695628359,9.35261377,2694.5,2694.3,0.37101]
[1724695628563,9.35261377,2694.5,2693.9,3.57888]
[1724695628564,9.35261377,2694.5,2694.2,0.37102]
[1724695629067,9.35261377,2694.5,2694.2,0.37103]
[1724695629273,9.35261377,2694.5,2693.9,3.2078]
[1724695629457,1.82141,2694.4,2694.0,0.37105]
[1724695629763,9.80326426,2694.3,2693.9,3.2078]
[1724695629962,9.80326426,2694.3,2694.2,0.37103]
[1724695630166,9.10826426,2694.3,2694.2,0.37103]
[1724695630661,9.29396166,2694.5,2694.2,0.37103]
[1724695630859,9.29396166,2694.3,2694.2,0.37103]
[1724695631054,9.29396166,2694.4,2694.3,0.37102]
[1724695631466,9.19233863,2694.3,2694.2,1.29862]
[1724695631764,9.19233863,2694.4,2694.1,0.92763]
[1724695631961,9.19233863,2694.4,2693.9,4.13548]
[1724695631962,9.19233863,2694.4,2694.3,0.37101]
[1724695632266,0.01032865,2694.6,2694.5,0.37099]
[1724695632670,9.11593984,2694.6,2694.5,0.37099]
[1724695633661,9.11593984,2694.6,2694.5,5.00968]
[1724695633970,9.11593984,2694.6,2694.5,0.37099]
[1724695634966,9.11593984,2694.6,2694.4,1.8363]
[1724695635173,9.11593984,2694.6,2694.0,3.21]
[1724695635466,9.11593984,2694.6,2694.4,0.371]
[1724695635672,9.11593984,2694.6,2693.2,3.08105238]
[1724695635673,0.37132,2692.1,2692.0,0.96730619]
[1724695635868,0.37132,2692.1,2690.8,2.89732359]
[1724695635869,3.21,2692.1,2691.0,0.37147]
[1724695636071,3.21,2692.0,2691.6,0.53717541]
[1724695636276,3.21,2692.0,2691.5,0.53717541]
[1724695636575,0.37137,2691.8,2691.5,0.54175128]
[1724695636874,9.19748647,2691.7,2691.5,0.54175128]
[1724695637067,3.21,2691.6,2691.5,0.00457587]
[1724695637575,21.37664214,2691.6,2690.9,0.37148]
[1724695637768,9.45144214,2691.6,2691.2,0.53717541]
[1724695637973,3.21,2691.3,2691.2,0.53717541]
[1724695638173,9.45144214,2691.6,2691.2,0.53717541]
[1724695638473,9.46663144,2691.8,2691.5,0.53717541]
[1724695638663,9.46663144,2691.8,2691.2,0.00385193]
[1724695638664,9.46663144,2691.5,2691.2,0.00385193]
[1724695638868,9.83798144,2691.9,2691.4,0.53717541]
[1724695638869,4.28,2691.7,2691.4,0.53717541]
[1724695639167,13.4543127,2691.7,2691.6,0.53717541]
[1724695639373,13.4543127,2691.7,2691.2,0.00385193]
[1724695639374,13.4543127,2691.7,2691.4,0.53717541]
[1724695639568,4.28,2691.7,2691.4,0.53717541]
[1724695639766,9.1743127,2691.6,2691.4,0.53717541]
[1724695640376,9.1743127,2691.6,2691.5,0.53717541]
[1724695641173,9.1743127,2691.6,2691.2,0.00385193]
[1724695641174,12.8895127,2691.6,2691.2,0.00385193]
[1724695641374,4.28,2691.3,2691.2,0.00385193]
[1724695641673,13.35320161,2691.3,2691.2,0.00385193]
[1724695641877,13.35320161,2691.3,2691.2,0.54102734]
[1724695642070,13.35320161,2691.3,2691.2,0.91247734]
[1724695642270,7.92850161,2691.3,2691.2,0.91247734]
[1724695642470,7.92850161,2691.3,2691.2,0.54102734]
[1724695643670,15.92450161,2691.3,2691.2,0.00385193]
[1724695644072,12.20850161,2691.3,2691.2,0.54102734]
[1724695646779,5.81106643,2691.3,2691.2,5.91247734]
[1724695647474,4.65544072,2692.0,2691.4,0.37142]
[1724695647671,4.65544072,2692.0,2691.8,0.53717541]
[1724695647672,4.28410072,2692.0,2691.8,0.53717541]
[1724695647873,9.52784333,2691.9,2691.8,0.53717541]
[1724695648678,0.3714,2691.6,2691.2,40.00385193]
[1724695648879,4.28,2691.5,2691.2,0.00385193]
[1724695649069,13.49761307,2691.5,2691.2,0.00385193]
[1724695649270,13.49761307,2691.5,2691.4,0.53717541]
[1724695654886,13.49761307,2691.5,2691.4,0.90859541]
[1724695656182,9.21761307,2691.5,2691.4,0.90859541]
[1724695657488,0.00410072,2692.0,2691.4,5.53717541]
[1724695657684,0.00410072,2692.0,2691.9,0.90852541]
[1724695657991,9.43257225,2692.0,2691.9,0.90852541]
[1724695658181,9.43257225,2692.0,2691.9,0.53717541]
[1724695658376,14.08391225,2692.0,2691.9,0.53717541]
[1724695658685,17.79831225,2692.0,2691.5,1.0773]
[1724695658884,0.37137,2691.8,2691.5,0.7059]
[1724695659082,4.65139,2691.6,2691.5,0.7059]
[1724695659278,4.28,2691.6,2691.2,0.76445193]
[1724695659479,13.69905693,2691.6,2691.3,0.53717541]
[1724695659784,14.07045693,2691.6,2691.5,0.53717541]
[1724695660378,18.34276693,2691.6,2691.2,0.00385193]
[1724695660581,0.37142,2691.4,2691.3,0.53717541]
[1724695660891,14.14194782,2691.4,2691.3,0.53717541]
[1724695661886,14.14194782,2691.4,2690.0,0.2]
[1724695661887,3.716,2691.3,2690.0,0.2]
[1724695662185,4.65151,2690.8,2690.7,0.53717541]
[1724695662388,4.65149,2691.0,2690.9,0.53717541]
[1724695662782,14.13279246,2691.0,2690.9,0.53717541]
[1724695662981,14.13279246,2691.0,2690.9,0.54134362]
[1724695663391,15.06149246,2691.0,2690.9,0.54134362]
[1724695664197,0.37154,2690.5,2690.4,0.37155]
[1724695664380,0.37154,2690.5,2690.4,0.37156]
[1724695664693,0.37159,2690.2,2690.0,0.5716]
[1724695665085,9.22610028,2690.1,2690.0,0.5716]
[1724695665383,9.23042505,2690.1,2690.0,0.57490347]
[1724695665583,9.23042505,2690.1,2690.0,1.11207888]
[1724695666488,9.23042505,2690.1,2690.0,2.04111888]
[1724695667180,9.23042505,2690.1,2690.0,2.97015888]
[1724695667389,7.4878,2690.9,2690.8,0.3715]
[1724695667582,3.2078,2690.9,2690.8,0.3715]
[1724695667788,3.2078,2690.9,2690.8,0.90867541]
[1724695667789,12.3218243,2690.9,2690.8,0.90867541]
[1724695668385,0.00325705,2690.9,2690.8,2.76621541]
[1724695668982,0.00325705,2690.9,2690.8,42.55564541]
[1724695669283,9.11443293,2690.9,2690.8,1.62687541]
[1724695669890,9.11443293,2690.9,2690.8,0.90867541]
[1724695672987,9.11443293,2690.9,2690.3,1.4875]
[1724695672988,0.37152,2690.7,2690.6,0.37152]
[1724695673497,0.37152,2690.7,2690.6,0.53717541]
[1724695674289,0.37152,2690.7,2690.1,0.7481]
[1724695674290,0.37155,2690.5,2690.1,0.7481]
[1724695674583,0.37154,2690.6,2690.4,0.37155]
[1724695674793,4.08834,2690.6,2690.4,0.37155]
[1724695675094,9.22445089,2690.6,2690.5,0.90872541]
[1724695675283,0.37151,2690.8,2690.7,0.37152]
[1724695675480,9.49355011,2690.8,2690.7,0.90869541]
[1724695675899,0.37475705,2690.9,2690.8,0.3715]
[1724695676093,0.00325705,2690.9,2690.8,0.3715]
[1724695676285,9.33863298,2690.9,2690.8,0.90867541]
[1724695676491,9.71012298,2690.9,2690.8,0.90867541]
[1724695676890,9.33863298,2690.9,2690.8,0.90867541]
[1724695677187,9.33863298,2690.9,2690.8,1.83744541]
[1724695678184,9.33863298,2690.9,2690.8,2.59774541]
[1724695680288,0.00325705,2690.9,2690.8,2.59774541]
[1724695680495,0.00325705,2690.9,2690.8,7.59774541]
[1724695680682,0.00557,2691.2,2691.1,0.37146]
[1724695680888,0.00557,2691.2,2691.1,0.90863541]
[1724695681086,9.09452326,2691.2,2691.1,0.90863541]
[1724695681287,9.09452326,2691.2,2690.4,0.92889]
[1724695681288,12.81052326,2691.2,2690.4,0.92889]
[1724695681510,12.81052326,2691.2,2690.9,0.37148]
[1724695681511,0.37148,2691.0,2690.9,0.37148]
[1724695681793,9.64537592,2691.0,2690.9,0.90866541]
[1724695681992,9.64537592,2691.0,2690.9,0.53717541]
[1724695682490,9.52169556,2691.0,2690.9,0.53717541]
[1724695682794,9.52169556,2691.0,2690.4,0.92889]
[1724695682795,0.37152,2690.7,2690.6,0.37152]
[1724695682997,0.37152,2690.7,2690.6,0.90869541]
[1724695683199,9.53589099,2690.7,2690.6,0.90869541]
[1724695683496,9.28805218,2690.7,2690.6,0.90870541]
[1724695683691,9.65957218,2690.7,2690.6,0.90870541]
[1724695683992,9.65957218,2690.7,2690.6,0.53717541]
[1724695684697,13.37637218,2690.7,2690.4,0.37155]
[1724695684992,0.49521119,2690.6,2690.4,0.90872541]
[1724695685198,3.33141401,2690.5,2690.4,0.53717541]
[1724695685491,16.76661357,2690.5,2690.1,0.3716]
[1724695685695,0.123619,2690.4,2690.1,0.90877541]
[1724695685886,0.37158,2690.3,2690.1,0.53717541]
[1724695686092,0.37158,2690.3,2690.0,0.20330347]
[1724695686093,0.37159,2690.2,2690.0,0.20330347]
[1724695686290,4.08919,2690.2,2690.0,0.20330347]
[1724695686495,9.1621,2690.5,2690.0,0.20330347]
[1724695686496,13.55794719,2690.1,2690.0,0.20330347]
[1724695686685,9.84034719,2690.1,2690.0,0.20330347]
[1724695686892,1.30099,2689.3,2689.2,9.44e-06]
[1724695687196,1.30099,2689.3,2688.3,2.39846538]
[1724695687197,8.61952972,2689.3,2687.4,0.92993]
[1724695687405,8.61952972,2689.3,2688.1,0.37188]
[1724695687406,4.28,2688.2,2688.1,0.37188]
[1724695687589,0.92936,2689.1,2687.5,0.92989]
[1724695687590,4.28,2688.5,2688.2,0.53717541]
[1724695687785,0.37185,2688.3,2687.3,3.2078]
[1724695687991,4.28,2687.9,2687.8,0.37192]
[1724695688497,4.28,2687.9,2687.8,0.90909541]
[1724695689195,4.28,2687.9,2687.8,0.53717541]
[1724695689496,8.0008,2687.9,2687.4,40.0]
[1724695689687,4.28,2687.9,2687.7,0.53717541]
[1724695689892,4.28,2687.9,2687.8,0.37192]
[1724695690287,0.00558067,2688.1,2688.0,0.37189]
[1724695690490,0.00558067,2688.1,2688.0,0.90906541]
[1724695690686,9.09933882,2688.1,2688.0,0.53717541]
[1724695690998,12.81933882,2688.1,2687.4,40.0]
[1724695691303,4.28,2687.8,2687.7,0.37193]
[1724695691488,4.28,2687.8,2687.5,0.37195]
[1724695691489,8.0008,2687.8,2687.5,0.37195]
[1724695691800,13.40478249,2687.8,2687.6,0.37195]
[1724695692093,13.40478249,2687.8,2687.3,3.21192113]
[1724695692396,0.00558067,2688.1,2688.0,0.37189]
[1724695692600,0.00558067,2688.1,2688.0,0.90906541]
[1724695693400,0.00558067,2688.1,2687.8,0.37191]
[1724695693401,13.24861516,2688.1,2687.8,0.37191]
[1724695693694,13.24861516,2688.1,2687.3,3.91102113]
[1724695693695,4.65191,2687.9,2687.3,3.91102113]
[1724695694000,0.37746067,2688.1,2687.8,0.53717541]
[1724695694198,0.00558067,2688.1,2687.8,0.53717541]
[1724695694399,0.3719,2687.9,2687.8,0.53717541]
[1724695694586,0.3719,2687.9,2687.3,3.91102113]
[1724695694790,9.78840058,2687.9,2687.7,0.53717541]
[1724695694990,9.78840058,2687.9,2687.8,0.90909541]
[1724695694991,9.41650058,2687.9,2687.8,0.90909541]
[1724695695214,17.41730058,2687.9,2687.3,0.00412113]
[1724695695392,4.28,2687.9,2687.8,0.37192]
[1724695695696,13.52994154,2687.9,2687.8,0.90909541]
[1724695696403,13.52994154,2687.9,2687.8,0.53717541]
[1724695696607,13.90184154,2687.9,2687.8,0.53717541]
[1724695696897,17.62264154,2687.9,2687.6,0.37194]
[1724695697100,13.90184154,2687.9,2687.7,0.53717541]
[1724695697290,13.52994154,2687.9,2687.3,0.00412113]
[1724695697494,13.52994154,2687.9,2687.5,0.53717541]
[1724695697700,13.52994154,2687.9,2687.8,0.37192]
[1724695698004,13.52994154,2687.9,2687.8,0.90909541]
[1724695698619,17.25074154,2687.9,2687.8,0.37192]
[1724695698796,13.52994154,2687.9,2687.8,0.90909541]
[1724695699101,9.24994154,2687.9,2687.8,0.90909541]
[1724695699698,9.24994154,2687.9,2687.8,0.53717541]
[1724695700097,9.24994154,2687.9,2687.8,0.90909541]
[1724695700700,9.24994154,2687.9,2687.8,0.37192]
[1724695700901,17.25074154,2687.9,2687.3,0.00412113]
[1724695701110,0.37192,2687.8,2687.6,0.37194]
[1724695701293,4.28,2687.7,2687.6,0.37194]
[1724695701491,22.69962774,2687.7,2687.4,0.37197]
[1724695701696,4.28,2687.5,2687.4,0.37197]
[1724695702199,1.30191,2687.4,2687.3,0.00412113]
[1724695702394,4.28,2686.9,2686.2,3.2078]
[1724695702598,4.28,2687.2,2686.4,0.53717541]
[1724695702599,3.2078,2686.7,2686.4,0.53717541]
[1724695702804,3.2078,2686.7,2686.0,0.9304]
[1724695703005,3.2078,2686.7,2686.6,0.90925541]
[1724695703301,12.55934869,2686.7,2686.6,0.91371377]
[1724695703507,16.28174869,2686.7,2686.6,0.00445836]
[1724695704001,16.28174869,2686.7,2686.6,0.37653836]
[1724695704205,21.28174869,2686.7,2685.3,0.93063]
[1724695704395,7.4878,2685.8,2685.7,0.37221]
[1724695704597,3.2078,2685.8,2685.7,0.90938541]
[1724695704797,3.2078,2685.8,2684.6,1.86177]
[1724695704798,25.34104545,2685.8,2684.7,3.9269]
[1724695705000,25.34104545,2685.8,2685.6,0.53717541]
[1724695705001,16.61784545,2685.8,2685.6,0.53717541]
[1724695705192,3.7232,2685.7,2684.9,40.0]
[1724695705397,4.28,2685.4,2684.9,40.00421055]
[1724695705701,4.28,2685.4,2685.3,0.37226]
[1724695705899,3.21261354,2685.8,2685.7,0.37221]
[1724695706096,3.21261354,2685.8,2685.7,0.90938541]
[1724695706297,9.34475318,2685.8,2685.7,0.90938541]
[1724695706503,13.06795318,2685.8,2685.0,40.0]
[1724695706699,4.65222,2685.7,2685.5,0.53717541]
[1724695706900,4.65222,2685.7,2685.4,0.90941541]
[1724695707102,9.3862258,2685.6,2685.5,0.90940541]
[1724695707712,9.45449421,2685.7,2685.6,0.37222]
[1724695707900,0.00481354,2685.8,2685.7,0.90938541]
[1724695708101,0.00481354,2685.8,2685.7,0.53717541]
[1724695708400,0.37225,2685.4,2685.1,0.37228]
[1724695708601,0.37225,2685.4,2685.0,40.0]
[1724695708602,9.83150775,2685.8,2685.6,0.53717541]
[1724695708796,9.24343019,2685.3,2685.0,40.0]
[1724695708999,0.37227,2685.3,2685.0,40.90947541]
[1724695709199,15.17919019,2685.7,2685.1,0.37228]
[1724695709395,9.18676759,2685.2,2685.0,40.0]
[1724695709600,9.18676759,2685.5,2685.4,0.90942541]
[1724695709801,0.00481354,2685.8,2685.5,0.37224]
[1724695710003,0.00481354,2685.8,2685.7,0.90938541]
[1724695710409,0.00481354,2685.8,2685.3,3.2078]
[1724695710607,9.40177106,2685.8,2685.5,0.90940541]
[1724695710910,9.40177106,2685.8,2685.5,0.53717541]
[1724695711208,11.211,2685.7,2685.2,0.37227]
[1724695711410,11.211,2685.7,2685.0,40.7059]
[1724695711411,0.37226,2685.4,2685.1,0.37229]
[1724695711705,9.23314188,2685.3,2685.2,0.37228]
[1724695711908,12.95714188,2685.3,2685.2,0.37228]
[1724695712112,3.724,2685.3,2685.2,0.37228]
[1724695712316,9.23314188,2685.3,2685.2,0.37228]
[1724695712804,9.40740594,2685.6,2685.5,0.37224]
[1724695713010,9.40740594,2685.6,2685.3,0.37226]
[1724695713011,0.37223,2685.6,2685.3,0.37226]
[1724695713208,4.09624,2685.5,2685.2,0.37227]
[1724695713407,0.37226,2685.4,2685.1,0.53717541]
[1724695713604,0.37227,2685.3,2685.0,40.0]
[1724695713809,4.09628,2685.2,2685.0,40.3723]
[1724695714112,9.56649676,2685.2,2685.0,40.3723]
[1724695714324,9.56649676,2685.2,2684.6,0.37236]
[1724695714325,0.37234,2684.8,2684.6,0.37236]
[1724695714503,7.4878,2684.8,2683.6,4.13903]
[1724695714812,9.44784294,2684.7,2684.2,0.53717541]
[1724695714999,9.44784294,2684.7,2683.7,40.6964]
[1724695715000,13.17264294,2684.7,2683.7,40.6964]
[1724695715205,4.28,2684.6,2683.7,0.6964]
[1724695715405,3.2078,2683.9,2683.7,0.00389716]
[1724695715712,3.2078,2683.3,2682.2,40.0]
[1724695715905,3.2078,2683.3,2682.8,0.53717541]
[1724695716208,9.38476212,2683.2,2682.6,0.37263]
[1724695716410,4.28,2683.1,2682.6,0.53717541]
[1724695716609,9.38950575,2683.2,2682.7,0.37262]
[1724695716809,9.15210429,2683.0,2682.9,0.37258]
[1724695717008,0.00474363,2683.2,2683.1,0.37257]
[1724695717202,0.00474363,2683.2,2683.1,0.53717541]
[1724695717410,0.00474363,2683.2,2682.6,0.00267495]
[1724695717411,18.26974416,2683.2,2682.6,0.00267495]
[1724695717607,9.54254416,2683.2,2682.6,0.53985036]
[1724695717902,3.7272,2683.1,2682.6,0.00267495]
[1724695718304,13.26500053,2683.0,2682.6,0.00267495]
[1724695718503,13.26500053,2683.0,2682.9,0.90977541]
[1724695718504,9.53780053,2683.0,2682.9,0.90977541]
[1724695718708,0.00474363,2683.2,2682.9,0.90977541]
[1724695718709,0.00474363,2683.2,2683.1,0.37257]
[1724695719005,0.00474363,2683.2,2683.1,0.90974541]
[1724695719511,3.73194363,2683.2,2682.6,0.00267495]
[1724695719711,0.00474363,2683.2,2683.1,0.90974541]
[1724695719914,3.63e-06,2683.2,2683.1,0.90974541]
[1724695720211,2.67622054,2683.7,2683.6,0.3725]
[1724695720513,3.2078,2684.1,2683.6,43.7264]
[1724695720716,3.2078,2684.1,2683.7,1.4249]
[1724695720910,9.09954161,2684.3,2684.2,0.37242]
[1724695721103,0.00366254,2684.3,2684.2,0.37242]
[1724695721604,0.00366254,2684.3,2684.2,9.09802]
[1724695721911,2.54e-06,2684.3,2684.2,9.09802]
[1724695722100,2.54e-06,2684.3,2684.1,0.37243]
[1724695722411,2.54e-06,2684.3,2684.2,40.37242]
[1724695722711,2.54e-06,2684.3,2684.2,48.37802]
[1724695723010,2.54e-06,2684.3,2684.2,56.58582]
[1724695723213,2.54e-06,2684.3,2684.2,53.37802]
[1724695723709,4.86e-06,2684.5,2684.4,0.37239]
[1724695724019,4.86e-06,2684.5,2684.4,10.58337]
[1724695724204,0.6919,2685.9,2684.4,10.58337]
[1724695724205,3.2078,2685.8,2685.3,0.37226]
[1724695724405,3.2078,2685.8,2685.4,0.37225]
[1724695724605,12.73711698,2685.8,2685.4,0.37501805]
[1724695725009,9.52931698,2685.8,2685.7,0.37221]
[1724695725221,0.00307594,2685.8,2685.7,0.37221]
[1724695725508,13.13897664,2685.8,2685.4,0.00276805]
[1724695725709,9.41577664,2685.8,2685.4,0.00276805]
[1724695725914,9.78798664,2685.8,2685.4,0.00276805]
[1724695726112,0.37224,2685.5,2685.3,0.00559232]
[1724695726308,3.7232,2685.7,2684.6,0.37236]